fUST/lending_fUST_20240925
["ID","MTS","AMOUNT","RATE_DAILY","PERIOD"]
[339074475,1727203844786,-500.0,0.00025,30]
[339074476,1727203844795,-500.0,0.00025,30]
[339074477,1727203844805,-500.0,0.00025,30]
[339074478,1727203844814,-500.0,0.00025,30]
[339074479,1727203844824,-500.0,0.00025,30]
[339074480,1727203844920,-500.0,0.00025,30]
[339074481,1727203844938,-500.0,0.00025,30]
[339074482,1727203844948,-500.0,0.00025,30]
[339074483,1727203844957,-500.0,0.00025,30]
[339074484,1727203844966,-10000.0,0.00025,25]
[339074485,1727203844975,-391.01741,0.00025,7]
[339074486,1727203844984,-391.01741,0.00025,7]
[339074487,1727203844994,-414.913152,0.00025,7]
[339074488,1727203845003,-414.913152,0.00025,7]
[339074489,1727203845013,-500.0,0.00025,30]
[339074490,1727203845022,-500.0,0.00025,30]
[339074491,1727203845032,-500.0,0.00025,30]
[339074492,1727203845041,-500.0,0.00025,30]
[339074493,1727203845051,-500.0,0.00025,30]
[339074494,1727203845060,-923.50062393,0.00025,30]
[339074495,1727203845070,-500.0,0.00025,30]
[339074496,1727203845079,-500.0,0.00025,30]
[339074497,1727203845089,-500.0,0.00025,30]
[339074498,1727203845098,-502.03247736,0.00025,30]
[339074499,1727203845107,-880.43717047,0.00025,30]
[339074500,1727203845116,-500.0,0.00025,30]
[339074501,1727203845125,-421.574842,0.00025,7]
[339074502,1727203845135,-421.574842,0.00025,7]
[339074503,1727203845144,-151.0,0.00025,7]
[339074504,1727203845154,-280.665193,0.00025,7]
[339074505,1727203845164,-280.665193,0.00025,7]
[339074506,1727203845176,-3600.316463,0.00025,7]
[339074507,1727203845185,-1028.634151,0.00025,7]
[339074508,1727203845195,-1028.634151,0.00025,7]
[339074509,1727203845204,-181.2,0.00025,7]
[339074510,1727203845213,-181.2,0.00025,7]
[339074511,1727203845223,-2121.124359,0.00025,7]
[339074512,1727203845232,-2121.124359,0.00025,7]
[339074513,1727203845241,-151.0,0.00025,7]
[339074514,1727203845251,-213.809146,0.00025,7]
[339074515,1727203845260,-213.809146,0.00025,7]
[339074516,1727203845269,-593.127932,0.00025,7]
[339074517,1727203845277,-593.127932,0.00025,7]
[339074518,1727203845287,-1061.37404,0.00025,7]
[339074519,1727203845296,-1061.37404,0.00025,7]
[339074520,1727203845305,-1953.367069,0.00025,7]
[339074521,1727203845314,-1953.367069,0.00025,7]
[339074522,1727203845323,-344.865491,0.00025,7]
[339074523,1727203845332,-310.030125,0.00025,7]
[339074524,1727203845342,-344.865491,0.00025,7]
[339074525,1727203845352,-310.030125,0.00025,7]
[339074526,1727203845361,-155.778014,0.00025,7]
[339074527,1727203845370,-155.778014,0.00025,7]
[339074528,1727203845379,-388.34367,0.00025,7]
[339074529,1727203845388,-388.34367,0.00025,7]
[339074530,1727203845397,-279.944035,0.00025,7]
[339074531,1727203845407,-151.0,0.00025,7]
[339074532,1727203845416,-279.944035,0.00025,7]
[339074533,1727203845428,-151.0,0.00025,7]
[339074534,1727203845437,-996.193539,0.00025,7]
[339074535,1727203845446,-996.193539,0.00025,7]
[339074536,1727203845455,-357.784669,0.00025,7]
[339074537,1727203845464,-357.784669,0.00025,7]
[339074538,1727203845473,-647.005583,0.00025,7]
[339074539,1727203845483,-647.005583,0.00025,7]
[339074540,1727203845492,-500.0,0.00025073,2]
[339074541,1727203845501,-500.0,0.00025073,2]
[339074542,1727203845510,-361.24522872,0.00025073,2]
[339074543,1727203845519,-500.0,0.00025073,2]
[339074544,1727203845528,-387.83972564,0.00025073,2]
[339074545,1727203845545,-500.0,0.00025073,2]
[339074546,1727203845561,-606.96312189,0.00025073,2]
[339074547,1727203845578,-500.0,0.00025073,2]
[339074548,1727203845596,-500.0,0.00025073,2]
[339074549,1727203845614,-160.0,0.00025089,2]
[339074550,1727203845630,-160.0,0.00025089,2]
[339074551,1727203845648,-245361.81417491,0.0002509,2]
[339074552,1727203845662,-152.315314,0.0002509,7]
[339074553,1727203845682,-152.315314,0.0002509,7]
[339074554,1727203845699,-200.213142,0.0002509,7]
[339074555,1727203845719,-200.213142,0.0002509,7]
[339074556,1727203845732,-224.170744,0.0002509,7]
[339074557,1727203845747,-224.170744,0.0002509,7]
[339074558,1727203845764,-151.0,0.0002509,7]
[339074559,1727203845782,-151.0,0.0002509,7]
[339074560,1727203845794,-391.01741,0.0002509,7]
[339074561,1727203845809,-391.01741,0.0002509,7]
[339074562,1727203845822,-414.913152,0.0002509,7]
[339074565,1727203845836,-414.913152,0.0002509,7]
[339074567,1727203845850,-421.574842,0.0002509,7]
[339074568,1727203845865,-421.574842,0.0002509,7]
[339074569,1727203845879,-151.0,0.0002509,7]
[339074570,1727203845893,-151.0,0.0002509,7]
[339074571,1727203845908,-151.0,0.0002509,7]
[339074572,1727203845923,-280.665193,0.0002509,7]
[339074573,1727203845936,-280.665193,0.0002509,7]
[339074574,1727203845950,-3600.316463,0.0002509,7]
[339074575,1727203845965,-1215.881564,0.0002509,7]
[339074576,1727203845979,-1215.881564,0.0002509,7]
[339074577,1727203845993,-1028.634151,0.0002509,7]
[339074579,1727203846007,-151.0,0.0002509,7]
[339074580,1727203846022,-1028.634151,0.0002509,7]
[339074581,1727203846035,-151.0,0.0002509,7]
[339074582,1727203846049,-151.0,0.0002509,7]
[339074583,1727203846064,-181.2,0.0002509,7]
[339074584,1727203846079,-181.2,0.0002509,7]
[339074585,1727203846093,-310.631157,0.0002509,7]
[339074586,1727203846108,-310.631157,0.0002509,7]
[339074588,1727203846122,-216.355543,0.0002509,7]
[339074590,1727203846136,-216.355543,0.0002509,7]
[339074592,1727203846150,-2121.124359,0.0002509,7]
[339074593,1727203846164,-2121.124359,0.0002509,7]
[339074594,1727203846179,-151.0,0.0002509,7]
[339074595,1727203846193,-213.809146,0.0002509,7]
[339074596,1727203846210,-213.809146,0.0002509,7]
[339074597,1727203846225,-593.127932,0.0002509,7]
[339074598,1727203846239,-593.127932,0.0002509,7]
[339074599,1727203846254,-1061.37404,0.0002509,7]
[339074600,1727203846269,-1061.37404,0.0002509,7]
[339074601,1727203846283,-1953.367069,0.0002509,7]
[339074602,1727203846297,-1953.367069,0.0002509,7]
[339074603,1727203846312,-344.865491,0.0002509,7]
[339074604,1727203846327,-310.030125,0.0002509,7]
[339074605,1727203846341,-344.865491,0.0002509,7]
[339074606,1727203846356,-310.030125,0.0002509,7]
[339074607,1727203846369,-155.778014,0.0002509,7]
[339074608,1727203846384,-155.778014,0.0002509,7]
[339074609,1727203846398,-388.34367,0.0002509,7]
[339074610,1727203846412,-388.34367,0.0002509,7]
[339074611,1727203846426,-279.944035,0.0002509,7]
[339074612,1727203846442,-151.0,0.0002509,7]
[339074613,1727203846458,-279.944035,0.0002509,7]
[339074615,1727203846473,-212.060765,0.0002509,7]
[339074617,1727203846487,-996.193539,0.0002509,7]
[339074618,1727203846502,-996.193539,0.0002509,7]
[339074619,1727203846616,-357.784669,0.0002509,7]
[339074620,1727203846662,-594.687406,0.0002509,7]
[339074621,1727203846671,-151.0,0.0002509,7]
[339074622,1727203846682,-357.784669,0.0002509,7]
[339074623,1727203846693,-594.687406,0.0002509,7]
[339074624,1727203846705,-151.0,0.0002509,2]
[339074625,1727203846716,-599.361232,0.0002509,7]
[339074626,1727203846726,-599.361232,0.0002509,7]
[339074627,1727203846739,-647.005583,0.0002509,7]
[339074628,1727203846751,-675.521126,0.0002509,7]
[339074629,1727203846763,-647.005583,0.0002509,7]
[339074630,1727203846772,-153.0,0.00025134,2]
[339074631,1727203846781,-153.0,0.00025134,2]
[339074632,1727203846791,-153.0,0.00025134,2]
[339074633,1727203846800,-153.0,0.00025134,2]
[339074634,1727203846809,-153.0,0.00025134,2]
[339074635,1727203846819,-153.0,0.00025134,2]
[339074636,1727203846830,-153.0,0.00025134,2]
[339074637,1727203846841,-153.0,0.00025134,2]
[339074638,1727203846852,-153.0,0.00025134,2]
[339074639,1727203846862,-153.0,0.00025134,2]
[339074640,1727203846873,-153.0,0.00025134,2]
[339074641,1727203846882,-219.8,0.00025207,2]
[339074642,1727203846891,-1547.7198502,0.00025328,2]
[339074643,1727203846900,-1000.0,0.00025521,2]
[339074644,1727203846909,-1000.0,0.00025621,2]
[339074645,1727203846918,-695.58333689,0.00025621,2]
[339074646,1727203846929,-300.35288752,0.00025621,2]
[339074647,1727203846940,-674.0789693,0.00025621,2]
[339074648,1727203846950,-1000.0,0.00025621,2]
[339074649,1727203846961,-1005.61499426,0.00025621,2]
[339074650,1727203846971,-153.0,0.00025778,2]
[339074651,1727203846981,-155.624608,0.00025831,7]
[339074652,1727203846991,-166.0,0.0002584,13]
[339074653,1727203847001,-45849.33023653,0.00025849,2]
[339074654,1727203847010,-100000.0,0.00025849,2]
[339074655,1727203847018,-151.0,0.00025849,7]
[339074656,1727203847028,-151.0,0.00025849,7]
[339074657,1727203847039,-164.920316,0.00025849,7]
[339074658,1727203847049,-164.920316,0.00025849,7]
[339074659,1727203847059,-151.0,0.00025849,7]
[339074660,1727203847069,-151.0,0.00025849,7]
[339074661,1727203847078,-151.0,0.00025849,7]
[339074662,1727203847087,-153.425284,0.00025849,7]
[339074663,1727203847097,-153.425284,0.00025849,7]
[339074664,1727203847106,-544.221979,0.00025849,7]
[339074665,1727203847115,-151.0,0.00025849,7]
[339074666,1727203847124,-151.0,0.00025849,7]
[339074667,1727203847134,-151.0,0.00025849,7]
[339074668,1727203847143,-151.0,0.00025849,7]
[339074669,1727203847151,-319.195538,0.00025849,7]
[339074670,1727203847161,-319.195538,0.00025849,7]
[339074671,1727203847170,-534.24505,0.00025849,7]
[339074672,1727203847180,-534.24505,0.00025849,7]
[339074673,1727203847189,-388.998849,0.00025849,7]
[339074674,1727203847199,-388.998849,0.00025849,7]
[339074675,1727203847208,-454.1743274,0.00025883,2]
[339074676,1727203847217,-1000.0,0.000259,2]
[339074677,1727203847226,-153.0,0.00025929,2]
[339074678,1727203847235,-153.0,0.00025929,2]
[339074679,1727203847244,-219.8,0.00025933,2]
[339074680,1727203847253,-306.0,0.00025942,2]
[339074681,1727203847262,-500.0,0.00025999,120]
[339074682,1727203847271,-500.0,0.00025999,120]
[339074683,1727203847281,-500.0,0.00025999,120]
[339074684,1727203847291,-500.0,0.00025999,120]
[339074685,1727203847300,-500.0,0.00025999,120]
[339074686,1727203847310,-500.0,0.00025999,120]
[339074687,1727203847319,-500.0,0.00025999,120]
[339074688,1727203847328,-500.0,0.00025999,120]
[339074689,1727203847338,-500.0,0.00025999,120]
[339074690,1727203847347,-500.0,0.00025999,120]
[339074691,1727203847356,-341.46,0.00025999,120]
[339074692,1727203847365,-151.0,0.00025999,7]
[339074693,1727203847374,-540.7,0.00026,31]
[339074694,1727203847384,-153.0,0.00026093,2]
[339074695,1727203847393,-153.0,0.00026093,2]
[339074696,1727203847402,-153.0,0.00026093,2]
[339074697,1727203847411,-153.0,0.00026093,2]
[339074698,1727203847420,-153.0,0.00026093,2]
[339074699,1727203847432,-153.0,0.00026093,2]
[339074700,1727203847442,-153.0,0.00026093,2]
[339074701,1727203847451,-153.0,0.00026093,2]
[339074702,1727203847460,-306.0,0.00026093,2]
[339074703,1727203847469,-306.0,0.00026093,2]
[339074704,1727203847479,-1152.0,0.00026112,2]
[339074705,1727203847489,-620.0610594,0.00026158,2]
[339074706,1727203847498,-3000.0,0.000263,2]
[339074707,1727203847507,-150.0,0.000263,2]
[339074708,1727203847516,-660.0,0.00026301,2]
[339074709,1727203847525,-151.0,0.0002631,7]
[339074710,1727203847535,-151.0,0.0002631,7]
[339074711,1727203847543,-1215.881564,0.0002631,7]
[339074712,1727203847552,-1215.881564,0.0002631,7]
[339074713,1727203847562,-151.0,0.0002631,7]
[339074714,1727203847571,-151.0,0.0002631,7]
[339074715,1727203847580,-151.0,0.0002631,7]
[339074716,1727203847590,-310.631157,0.0002631,7]
[339074717,1727203847599,-310.631157,0.0002631,7]
[339074718,1727203847608,-3000.0,0.0002631,2]
[339074719,1727203847618,-216.355543,0.0002631,7]
[339074720,1727203847627,-216.355543,0.0002631,7]
[339074721,1727203847636,-3000.0,0.0002632,2]
[339074722,1727203847645,-3000.0,0.0002633,2]
[339074723,1727203847654,-3000.0,0.0002634,2]
[339074724,1727203847664,-3000.0,0.0002635,2]
[339074725,1727203847673,-3000.0,0.0002636,2]
[339074726,1727203847684,-3000.0,0.0002637,2]
[339074727,1727203847694,-3000.0,0.0002638,2]
[339074728,1727203847703,-158.271857,0.00026384,2]
[339074729,1727203847713,-153.0,0.00026384,2]
[339074730,1727203847723,-437.0053625,0.00026384,2]
[339074731,1727203847732,-153.0,0.00026384,2]
[339074732,1727203847741,-153.0,0.00026384,2]
[339074733,1727203847751,-153.0,0.00026384,2]
[339074734,1727203847763,-153.0,0.00026384,2]
[339074735,1727203847772,-153.0,0.00026384,2]
[339074736,1727203847781,-153.0,0.00026384,2]
[339074737,1727203847791,-153.0,0.00026384,2]
[339074738,1727203847801,-153.0,0.00026384,2]
[339074739,1727203847810,-153.0,0.00026384,2]
[339074740,1727203847819,-153.0,0.00026384,2]
[339074741,1727203847831,-153.0,0.00026384,2]
[339074742,1727203847840,-306.0,0.00026384,2]
[339074743,1727203847850,-153.0,0.00026384,2]
[339074744,1727203847859,-153.0,0.00026384,2]
[339074745,1727203847868,-153.0,0.00026384,2]
[339074746,1727203847878,-153.0,0.00026384,2]
[339074747,1727203847887,-153.0,0.00026384,2]
[339074748,1727203847896,-153.0,0.00026384,2]
[339074749,1727203847905,-3000.0,0.0002639,2]
[339074750,1727203847914,-3000.0,0.000264,2]
[339074751,1727203847923,-1000.0,0.000264,2]
[339074752,1727203847932,-153.0,0.00026405,2]
[339074753,1727203847941,-151.0,0.0002641,7]
[339074754,1727203847951,-296.868852,0.0002641,7]
[339074755,1727203847960,-296.868852,0.0002641,7]
[339074756,1727203847970,-3000.0,0.0002641,2]
[339074757,1727203847979,-410.607804,0.0002641,7]
[339074758,1727203847989,-410.607804,0.0002641,7]
[339074759,1727203847998,-151.0,0.0002641,7]
[339074760,1727203848007,-151.0,0.0002641,7]
[339074761,1727203848017,-3000.0,0.0002642,2]
[339074762,1727203848026,-212.858089,0.0002643,7]
[339074763,1727203848035,-212.858089,0.0002643,7]
[339074764,1727203848044,-151.0,0.0002643,7]
[339074765,1727203848053,-151.0,0.0002643,7]
[339074766,1727203848063,-237.937957,0.0002643,7]
[339074767,1727203848072,-237.937957,0.0002643,7]
[339074768,1727203848082,-151.0,0.0002643,7]
[339074769,1727203848091,-151.0,0.0002643,7]
[339074770,1727203848101,-151.0,0.0002643,7]
[339074771,1727203848110,-151.0,0.0002643,7]
[339074772,1727203848119,-391.01741,0.0002643,7]
[339074773,1727203848129,-391.01741,0.0002643,7]
[339074774,1727203848138,-414.913152,0.0002643,7]
[339074775,1727203848148,-414.913152,0.0002643,7]
[339074776,1727203848157,-421.574842,0.0002643,7]
[339074777,1727203848167,-421.574842,0.0002643,7]
[339074778,1727203848178,-151.0,0.0002643,7]
[339074779,1727203848197,-280.665193,0.0002643,7]
[339074780,1727203848206,-280.665193,0.0002643,7]
[339074781,1727203848216,-3600.316463,0.0002643,7]
[339074782,1727203848226,-1028.634151,0.0002643,7]
[339074783,1727203848235,-1028.634151,0.0002643,7]
[339074784,1727203848244,-181.2,0.0002643,7]
[339074785,1727203848254,-181.2,0.0002643,7]
[339074786,1727203848264,-3000.0,0.0002643,2]
[339074787,1727203848273,-151.0,0.0002643,7]
[339074788,1727203848282,-151.0,0.0002643,7]
[339074789,1727203848291,-2550.682353,0.0002643,7]
[339074790,1727203848301,-2550.682353,0.0002643,7]
[339074791,1727203848310,-222.560106,0.0002643,7]
[339074792,1727203848319,-222.560106,0.0002643,7]
[339074793,1727203848329,-754.927123,0.0002643,7]
[339074794,1727203848338,-754.927123,0.0002643,7]
[339074795,1727203848349,-2121.124359,0.0002643,7]
[339074796,1727203848360,-2121.124359,0.0002643,7]
[339074797,1727203848370,-297.728922,0.0002643,7]
[339074798,1727203848379,-213.809146,0.0002643,7]
[339074799,1727203848388,-213.809146,0.0002643,7]
[339074800,1727203848398,-593.127932,0.0002643,7]
[339074801,1727203848407,-593.127932,0.0002643,7]
[339074802,1727203848416,-1061.37404,0.0002643,7]
[339074803,1727203848429,-1061.37404,0.0002643,7]
[339074804,1727203848438,-1953.367069,0.0002643,7]
[339074805,1727203848537,-1953.367069,0.0002643,7]
[339074806,1727203848552,-344.865491,0.0002643,7]
[339074807,1727203848562,-310.030125,0.0002643,7]
[339074808,1727203848572,-344.865491,0.0002643,7]
[339074809,1727203848581,-310.030125,0.0002643,7]
[339074810,1727203848590,-155.778014,0.0002643,7]
[339074811,1727203848599,-155.778014,0.0002643,7]
[339074812,1727203848608,-388.34367,0.0002643,7]
[339074813,1727203848617,-388.34367,0.0002643,7]
[339074814,1727203848627,-279.944035,0.0002643,7]
[339074815,1727203848636,-151.0,0.0002643,7]
[339074816,1727203848645,-279.944035,0.0002643,7]
[339074817,1727203848655,-996.193539,0.0002643,7]
[339074818,1727203848664,-996.193539,0.0002643,7]
[339074819,1727203848673,-357.784669,0.0002643,7]
[339074820,1727203848683,-594.687406,0.0002643,7]
[339074821,1727203848692,-151.0,0.0002643,7]
[339074822,1727203848701,-357.784669,0.0002643,7]
[339074823,1727203848711,-594.687406,0.0002643,7]
[339074824,1727203848720,-151.0,0.0002643,2]
[339074825,1727203848730,-599.361232,0.0002643,7]
[339074826,1727203848739,-599.361232,0.0002643,7]
[339074827,1727203848748,-647.005583,0.0002643,7]
[339074828,1727203848761,-224.170744,0.0002644,7]
[339074829,1727203848771,-224.170744,0.0002644,7]
[339074830,1727203848780,-151.0,0.0002644,7]
[339074831,1727203848803,-3000.0,0.0002644,2]
[339074832,1727203848814,-152.315314,0.0002645,7]
[339074833,1727203848824,-152.315314,0.0002645,7]
[339074834,1727203848835,-200.213142,0.0002645,7]
[339074835,1727203848845,-200.213142,0.0002645,7]
[339074836,1727203848855,-3000.0,0.0002645,2]
[339074837,1727203848865,-3000.0,0.0002646,2]
[339074838,1727203848875,-3000.0,0.0002647,2]
[339074839,1727203848885,-3000.0,0.0002648,2]
[339074840,1727203848895,-3000.0,0.0002649,2]
[339074841,1727203848906,-1000.0,0.000265,10]
[339074842,1727203848916,-3000.0,0.000265,2]
[339074843,1727203848928,-3000.0,0.0002651,2]
[339074844,1727203848939,-3000.0,0.0002652,2]
[339074845,1727203848950,-264.65191428,0.00026522,2]
[339074846,1727203848961,-3000.0,0.0002653,2]
[339074847,1727203848971,-3000.0,0.0002654,2]
[339074848,1727203848981,-3000.0,0.0002655,2]
[339074849,1727203848991,-3000.0,0.0002656,2]
[339074850,1727203849002,-3000.0,0.0002657,2]
[339074851,1727203849012,-3000.0,0.0002658,2]
[339074852,1727203849023,-3000.0,0.0002659,2]
[339074853,1727203849033,-154.334,0.00026597,2]
[339074854,1727203849042,-525.0,0.00026597,2]
[339074855,1727203849052,-1336.101,0.00026597,2]
[339074856,1727203849063,-591.703,0.00026597,2]
[339074857,1727203849073,-170.15,0.00026597,2]
[339074858,1727203849084,-150.288,0.00026597,2]
[339074859,1727203849094,-3000.0,0.000266,2]
[339074860,1727203849104,-625.0,0.000266,2]
[339074861,1727203849115,-5104.623974,0.0002661,2]
[339074862,1727203849124,-403.1987415,0.00026622,2]
[339074863,1727203849135,-1500.0,0.00026622,2]
[339074864,1727203849146,-1000.0,0.0002663,2]
[339074865,1727203849156,-1000.0,0.00026634,2]
[339074866,1727203849167,-1000.0,0.00026656,2]
[339074867,1727203849179,-219.8,0.0002666,3]
[339074868,1727203849188,-1000.0,0.00026662,2]
[339074869,1727203849198,-1000.0,0.00026694,2]
[339074870,1727203849208,-1000.0,0.00026695,2]
[339074871,1727203849218,-153.0,0.00026716,2]
[339074872,1727203849229,-151.0,0.00026721,7]
[339074873,1727203849239,-151.0,0.00026721,7]
[339074874,1727203849250,-151.0,0.00026721,7]
[339074875,1727203849262,-151.0,0.00026721,7]
[339074876,1727203849272,-151.0,0.00026721,7]
[339074877,1727203849283,-151.0,0.00026721,7]
[339074878,1727203849294,-164.920316,0.00026721,7]
[339074879,1727203849305,-164.920316,0.00026721,7]
[339074880,1727203849315,-151.0,0.00026749,7]
[339074881,1727203849324,-151.0,0.00026749,7]
[339074882,1727203849334,-2550.682353,0.00026749,7]
[339074883,1727203849344,-2550.682353,0.00026749,7]
[339074884,1727203849353,-222.560106,0.00026749,7]
[339074885,1727203849364,-222.560106,0.00026749,7]
[339074886,1727203849374,-754.927123,0.00026749,7]
[339074887,1727203849383,-754.927123,0.00026749,7]
[339074888,1727203849396,-63387.44409398,0.00026749,2]
[339074889,1727203849407,-153.0,0.00026751,2]
[339074890,1727203849417,-1000.0,0.0002676,2]
[339074891,1727203849427,-244.5172,0.00026766,2]
[339074892,1727203849438,-1000.0,0.00026778,2]
[339074893,1727203849448,-1000.0,0.00026811,2]
[339074894,1727203849459,-151.0,0.00026839,7]
[339074895,1727203849470,-151.0,0.00026839,7]
[339074896,1727203849481,-1000.0,0.00026839,2]
[339074897,1727203849493,-151.0,0.00026849,7]
[339074898,1727203849504,-151.0,0.00026849,7]
[339074899,1727203849515,-1000.0,0.00026856,2]
[339074900,1727203849527,-1000.0,0.00026867,2]
[339074901,1727203849537,-578.85014356,0.00026877,2]
[339074902,1727203849547,-1000.0,0.0002688,2]
[339074903,1727203849558,-204.3582581,0.00026899,2]
[339074904,1727203849568,-8458.9266846,0.00026899,2]
[339074905,1727203849578,-1355.74030386,0.000269,14]
[339074906,1727203849588,-2978.22,0.000269,14]
[339074907,1727203849599,-151.0,0.000269,7]
[339074908,1727203849608,-151.0,0.000269,7]
[339074909,1727203849618,-164.920316,0.000269,7]
[339074910,1727203849628,-164.920316,0.000269,7]
[339074911,1727203849637,-151.0,0.000269,7]
[339074912,1727203849648,-151.0,0.000269,7]
[339074913,1727203849659,-319.195538,0.000269,7]
[339074914,1727203849670,-319.195538,0.000269,7]
[339074915,1727203849681,-388.998849,0.000269,7]
[339074916,1727203849691,-388.998849,0.000269,7]
[339074917,1727203849701,-1000.0,0.000269,2]
[339074918,1727203849711,-1000.0,0.000269,2]
[339074919,1727203849721,-1000.0,0.000269,2]
[339074920,1727203849732,-1000.0,0.000269,2]
[339074921,1727203849742,-1000.0,0.000269,2]
[339074922,1727203849752,-1000.0,0.000269,2]
[339074923,1727203849763,-1000.0,0.000269,2]
[339074924,1727203849774,-1000.0,0.000269,2]
[339074925,1727203849784,-610.31681922,0.000269,2]
[339074926,1727203850225,-389.68318078,0.000269,2]
[339074927,1727203850235,-1000.0,0.000269,2]
[339074928,1727203850245,-1000.0,0.000269,2]
[339074929,1727203850254,-105.44936356,0.000269,2]
[339074930,1727203851329,-442.47974869,0.00018549,2]
[339074931,1727203851339,-814.05118207,0.00018549,2]
[339074932,1727203851348,-206.64402408,0.00018549,2]
[339074942,1727204687455,222.195151,0.00016147,2]
[339074944,1727204884457,3000.0,0.00016152,2]
[339074945,1727204928459,250.0,0.0001626,2]
[339074946,1727204928673,250.0,0.00016304,2]
[339074947,1727204928899,250.0,0.00016349,2]
[339074948,1727204929128,250.0,0.00016394,2]
[339074949,1727204929383,250.0,0.00016438,2]
[339074950,1727204929622,250.0,0.00016483,2]
[339074951,1727204929861,250.0,0.00016527,2]
[339074952,1727204930139,250.0,0.00016572,2]
[339074953,1727204930377,250.0,0.00016617,2]
[339074954,1727204930583,250.0,0.00016661,2]
[339074955,1727204931091,250.0,0.00016706,2]
[339074956,1727204931321,250.0,0.0001675,2]
[339074957,1727204931562,250.0,0.00016795,2]
[339074958,1727204931819,250.0,0.0001684,2]
[339074959,1727204932201,250.0,0.00016884,2]
[339074960,1727204932307,250.0,0.00016929,2]
[339074961,1727204932522,250.0,0.00016973,2]
[339074962,1727204946294,-250.0,0.00017018,2]
[339074963,1727204946316,-684.39322213,0.00017042,2]
[339075012,1727205032901,-250.0,0.00017063,2]
[339075013,1727205032911,-250.0,0.00017107,2]
[339075014,1727205032921,-300.0,0.00017128,2]
[339075015,1727205032931,-643.98991743,0.00017128,2]
[339075016,1727205032941,-244.56662444,0.00017128,2]
[339075017,1727205032950,-500.0,0.00017128,2]
[339075018,1727205032960,-500.0,0.00017128,2]
[339075019,1727205032970,-500.0,0.00017128,2]
[339075020,1727205032980,-168.46360366,0.00017128,2]
[339075021,1727205032990,-202.85230723,0.00017128,2]
[339075033,1727205038835,-297.14769277,0.00017128,2]
[339075034,1727205038845,-500.0,0.00017128,2]
[339075035,1727205038857,-500.0,0.00017128,2]
[339075036,1727205038867,-500.0,0.00017128,2]
[339075037,1727205038880,-500.0,0.00017128,2]
[339075038,1727205038891,-500.0,0.00017128,2]
[339075039,1727205038902,-207.33045546,0.00017128,2]
[339075040,1727205038913,-500.0,0.00017128,2]
[339075041,1727205038923,-639.76145832,0.00017128,2]
[339075042,1727205038933,-639.76145832,0.00017128,2]
[339075043,1727205038944,-639.76145832,0.00017128,2]
[339075044,1727205038956,-639.76145832,0.00017128,2]
[339075045,1727205038967,-639.76145832,0.00017128,2]
[339075046,1727205038978,-639.76145832,0.00017128,2]
[339075047,1727205038990,-639.76145832,0.00017128,2]
[339075048,1727205039001,-639.76145832,0.00017128,2]
[339075049,1727205039011,-639.76145832,0.00017128,2]
[339075050,1727205039023,-639.76145832,0.00017128,2]
[339075051,1727205039035,-639.76145832,0.00017128,2]
[339075052,1727205039044,-639.76145832,0.00017128,2]